Cogmind - Beta 13 @@@ ROGUE MODE // 2024.03.06 @ 15:15:45 // Winter2022/Polymind Player: Minty Result: Destroyed by H-71 Marshal with Heavy Mass Driver Performance ------------- Evolutions (6) 3000 Regions Visited (11) 2200 Robots Destroyed (38) 190 Value Destroyed (1638) 1638 Prototype IDs (3) 60 Alien Tech Used (0) 0 Bonus (5285) 5285 TOTAL SCORE: 12123 Bonus ------- Polymind Skill 4240 High Alert Combat Kills 45 Follower Combat Kills 219 Entered Garrisons 200 Used RIF Installer 500 Entered DSFs 500 Aligned with FarCom 300 Friendly Fire -719 Cogmind --------- Core Integrity 0/1150 Matter 0/0 Energy 48/50 System Corruption 2% Temperature Cool (0) Movement Core (50) Location -4/Factory Parts ------- > --- POWER (1) -------- (None) > --- PROPULSION (2) --- (None) > --- UTILITY (3) ------ Improved Target Analyzer > --- WEAPON (3) ------- (None) > --- INVENTORY (5) ---- (None) Peak State ------------ > --- POWER ------------ Reinforced Fission Core > --- PROPULSION ------- Armored Medium Treads Armored Medium Treads Armored Medium Treads > --- UTILITY ---------- Improved Heat Sink Improved Cooling System Advanced Visual Processing Unit Active Sensor Suite Improved Targeting Computer Kinecellerator Improved Weapon Cycler Improved Transmission Jammer Improved Heavy Armor Plating Graphene Brace EM Disruption Field Improved Dynamic Insulation System > --- WEAPON ----------- Heavy Mass Driver > --- INVENTORY -------- (None) [Rating: 119] Favorites ----------- Power Reinforced Fission Core Engine Light Ion Engine Power Core Reinforced Fission Core Reactor Cold Fusion Reactor Propulsion Armored Medium Treads Treads Armored Medium Treads Leg Aluminum Leg Wheel Wheel Hover Unit Makeshift Hover Unit Flight Unit Flight Unit Utility EX Chip 1 Device Improved Heat Sink Storage Large Battery Processor Advanced Visual Processing Unit Hackware EX Chip 1 Protection Improved Heavy Armor Plating Weapon Heavy Mass Driver Energy Gun Heavy Laser Ballistic Gun Flak Gun Ballistic Cannon Heavy Mass Driver Special Weapon Mining Laser Build | -11 -10 -10 -10 -9 -8 -8 -7 -6 -5 -5 -4 ------- Run | Yrd Mat Min Exi Min Mat Gar Fac Fac Fac DSF Fac Slots Evolved . | . . . . . . . . . . . . Power . | . . . . . . . . . . . . Propulsion . | . . . . . . . . . . . . Utility . | . . . . . . . . . . . . Weapon . | . . . . . . . . . . . . Parts Attached . | . . . . . . . . . . . . Power . | . . . . . . . . . . . . Engine . | . . . . . . . . . . . . Core . | . . . . . . . . . . . . Reactor . | . . . . . . . . . . . . Propulsion . | . . . . . . . . . . . . Treads . | . . . . . . . . . . . . Leg . | . . . . . . . . . . . . Wheel . | . . . . . . . . . . . . Hover . | . . . . . . . . . . . . Flight . | . . . . . . . . . . . . Utility . | . . . . . . . . . . . . Device . | . . . . . . . . . . . . Storage . | . . . . . . . . . . . . Processor . | . . . . . . . . . . . . Hackware . | . . . . . . . . . . . . Protection . | . . . . . . . . . . . . Artifact . | . . . . . . . . . . . . Weapon . | . . . . . . . . . . . . Energy Gun . | . . . . . . . . . . . . Energy Cannon . | . . . . . . . . . . . . Ballistic Gun . | . . . . . . . . . . . . Ballistic Cannon . | . . . . . . . . . . . . Launcher . | . . . . . . . . . . . . Special Weapon . | . . . . . . . . . . . . Impact Weapon . | . . . . . . . . . . . . Slashing Weapon . | . . . . . . . . . . . . Piercing Weapon . | . . . . . . . . . . . . Special Melee Weapon . | . . . . . . . . . . . . Unidentified Prototypes . | . . . . . . . . . . . . Parts Lost 29 | . 1 . . 2 4 . . 10 . . 12 Power 4 | . . . . . 1 . . 2 . . 1 Propulsion 6 | . . . . . 2 . . 2 . . 2 Utility 10 | . . . . 2 . . . 2 . . 6 Weapon 9 | . 1 . . . 1 . . 4 . . 3 Highest Loss Streak 12 | . 1 . . 1 4 . . 4 . . 12 To Critical Strikes . | . . . . . . . . . . . . Average Slot Usage (%) 82 | . 80 60 61 96 87 100 100 86 . 82 71 Engine 8 | . 19 20 6 5 17 16 16 12 . . . Core 1 | . . . . . . . . 1 . 7 3 Treads 4 | . . . . . . . . 1 . 12 12 Leg 6 | . 33 20 6 . . . . 13 . . . Wheel 5 | . . . . . 11 33 33 9 . . . Hover 1 | . . . 3 6 . . . . . . . Flight 3 | . . . . 10 27 . . 1 . 7 . Device 24 | . 19 20 10 6 11 33 33 24 . 36 36 Processor 2 | . . . . . . . . . . 7 9 Hackware 10 | . . . 33 60 . . . . . . . Protection 1 | . . . . . . . . 1 . 3 3 Energy Gun 3 | . 9 . . . . . . 10 . . . Ballistic Gun 2 | . . . . 5 14 . . 4 . 3 . Ballistic Cannon 1 | . . . . . . . . . . 3 3 Special Weapon 2 | . . . . . 5 16 16 4 . . . Naked Turns 62 | . 13 . 29 2 11 . . 5 . . 2 Heaviest Build 74 | . 7 6 17 17 6 6 6 24 8 74 74 Greatest Support 81 | 3 20 3 24 24 20 20 20 40 8 81 81 Greatest Overweight (x) 3 | . 1 1 1 . . . . 3 . . . Average Overweight (x) . | . . 1 . . . . . . . . . Largest Inventory Capacity 5 | . 1 1 1 1 . . . 1 . 1 5 Average Capacity . | . . 1 . . . . . . . . 1 Most Carried 1 | . . . . . . . . . . . 1 Average Carried . | . . . . . . . . . . . . Final Capacity 5 | . 1 1 1 . . . . . . 1 5 Final Carried . | . . . . . . . . . . . . Class Distribution -------------------- 27% | Heavy 20% | Grunt 16% | Tunneler 14% | Thief 6% | Swarmer 6% | Sentry 4% | Programmer Dominant Class ---------------- Grunt | -10/Materials Grunt | -10/Mines Thief | -10/Exiles Thief | -9/Mines Swarmer | -8/Materials Tunneler | -8/Garrison Tunneler | -7/Factory Grunt | -6/Factory Swarmer | -5/Factory Heavy | -5/DSF Heavy | -4/Factory Resources | -11 -10 -10 -10 -9 -8 -8 -7 -6 -5 -5 -4 ----------- Run | Yrd Mat Min Exi Min Mat Gar Fac Fac Fac DSF Fac Matter Collected 241 | . . . . 38 . . . 69 . 1 133 Remotely . | . . . . . . . . . . . . Salvage Created 835 | . 88 . . 48 . . . 223 . 25 451 Parts 73 | . 14 . . 14 5 . . 13 . 2 25 Haulers Intercepted . | . . . . . . . . . . . . Recyclers Shooed 3 | . 1 . . . . . . 1 . . 1 Parts Field Recycled . | . . . . . . . . . . . . Retrieved Matter . | . . . . . . . . . . . . Parts Self-Destructed . | . . . . . . . . . . . . Prevented . | . . . . . . . . . . . . Kills | -11 -10 -10 -10 -9 -8 -8 -7 -6 -5 -5 -4 ------- Run | Yrd Mat Min Exi Min Mat Gar Fac Fac Fac DSF Fac Combat Hostiles Destroyed 22 | . 4 . . 2 1 . . 9 . 1 5 Melee 1 | . 1 . . . . . . . . . . Guns 13 | . 3 . . 2 1 . . 7 . . . Cannons 6 | . . . . . . . . . . 1 5 AOE 2 | . . . . . . . . 2 . . . Classes Destroyed 13 | . 2 . . 1 1 . . 2 . . 7 Worker 5 | . . . . . . . . . . . 5 Builder 2 | . . . . . . . . . . . 2 Tunneler 2 | . . . . . . . . . . . 2 Recycler 2 | . . . . . . . . . . . 2 Operator 1 | . . . . . . . . . . . 1 Watcher 3 | . 1 . . . . . . . . . 2 Swarmer 5 | . . . . 2 . . . . . 1 2 Grunt 8 | . 4 . . . . . . 3 . . 1 Duelist 1 | . . . . . . . . . . . 1 Sentry 3 | . . . . . 1 . . 2 . . . Specialist 2 | . . . . . . . . 2 . . . Hunter 2 | . . . . . . . . 2 . . . Programmer 1 | . . . . . . . . . . . 1 Best Kill Streak 7 | . 3 . . 2 1 . . 4 . 1 7 Combat Bots Only 4 | . 3 . . 2 1 . . 4 . 1 3 Max Kills in Single Turn 4 | . 1 . . 1 1 . . 2 . 1 4 Gunslinging . | . . . . . . . . . . . . Exploded 2 | . . . . . . . . 2 . . . Melee 1 | . 1 . . . . . . . . . . Uniques/NPCs Destroyed 1 | . . . . 1 . . . . . . . EX-BIN (-9/Mines) Combat | -11 -10 -10 -10 -9 -8 -8 -7 -6 -5 -5 -4 -------- Run | Yrd Mat Min Exi Min Mat Gar Fac Fac Fac DSF Fac Hostile Shots Fired 578 | . 35 . . 52 43 19 . 232 . 2 195 Missed 173 | . 8 . . 27 22 9 . 58 . . 49 Damage Taken 6634 | . 351 . . 229 318 170 . 2147 . 34 3385 Core 2202 | . 99 . . 100 171 95 . 583 . . 1154 Absorbed by Shields . | . . . . . . . . . . . . Ignored by Resistances 487 | . . . . . . . . . . . 487 Core Remaining (%) 67 | 100 . . . 20 . 51 100 31 . 100 . Volleys Fired 148 | . 29 . . 26 21 . . 47 . 2 23 Largest 2 | . 1 . . 1 1 . . 2 . 1 1 Hottest 120 | . 40 . . 20 100 . . 120 . 75 75 Shots Fired 170 | . 29 . . 26 21 . . 69 . 2 23 Gun 144 | . 29 . . 26 20 . . 67 . . 2 Cannon 23 | . . . . . . . . . . 2 21 Launcher . | . . . . . . . . . . . . Special 3 | . . . . . 1 . . 2 . . . Kinetic 86 | . . . . 26 20 . . 17 . 2 21 Thermal 68 | . 29 . . . 1 . . 38 . . . Explosive . | . . . . . . . . . . . . Electromagnetic 16 | . . . . . . . . 14 . . 2 Robot Hit Streak 16 | . 5 . . 6 5 . . 16 . 1 10 Robot Miss Streak 6 | . 2 . . 3 4 . . 6 . 4 2 Penetration Max 1 | . . . . . . . . . . . 1 Secondary Targets 1 | . . . . . . . . 1 . . . Max Gunslinging Chain 1 | . . . . . . . . 1 . . . Shots Hit Robots 119 | . 20 . . 15 10 . . 60 . 1 13 Core Hits 95 | . 13 . . 8 7 . . 45 . 1 21 Critical Kills . | . . . . . . . . . . . . Critical Parts Destroyed . | . . . . . . . . . . . . Critical Strikes 2 | . . . . . . . . . . . 2 Blast 1 | . . . . . . . . . . . 1 Corrupt 1 | . . . . . . . . . . . 1 Melee Attacks . | . . . . . . . . . . . . Impact . | . . . . . . . . . . . . Slashing . | . . . . . . . . . . . . Piercing . | . . . . . . . . . . . . Sneak Attacks . | . . . . . . . . . . . . Combat Hostiles . | . . . . . . . . . . . . Follow-up Attacks . | . . . . . . . . . . . . Damage Inflicted 4305 | . 229 . . 116 95 . . 1182 . 85 2598 Guns 1511 | . 222 . . 116 82 . . 1040 . . 51 Cannons 1433 | . . . . . . . . . . 85 1348 Explosions 1222 | . . . . . . . . 115 . . 1107 Melee . | . . . . . . . . . . . . Ramming 115 | . 7 . . . 13 . . 3 . . 92 Kinetic 1868 | . . . . 116 82 . . 237 . 85 1348 Thermal 1553 | . 222 . . . . . . 800 . . 531 Explosive 576 | . . . . . . . . . . . 576 Electromagnetic 193 | . . . . . . . . 142 . . 51 Impact . | . . . . . . . . . . . . Slashing . | . . . . . . . . . . . . Piercing . | . . . . . . . . . . . . Highest Corruption 4 | . . . . . . . . 4 . . 2 Average Corruption 3 | . . . . . . . . 3 . . 1 Corruption Purged . | . . . . . . . . . . . . Corruption Blocked . | . . . . . . . . . . . . Effects 6 | . . . . . . . . 5 . . 1 Message Errors 2 | . . . . . . . . 1 . . 1 Matter Fused 1 | . . . . . . . . 1 . . . Heat Flow Errors 1 | . . . . . . . . 1 . . . Energy Discharges 1 | . . . . . . . . 1 . . . Misfires 1 | . . . . . . . . 1 . . . Overload Shots . | . . . . . . . . . . . . Overflow Damage 289 | . . . . . . . . . . . 289 Projectiles 182 | . . . . . . . . . . . 182 Explosions 107 | . . . . . . . . . . . 107 Melee . | . . . . . . . . . . . . Knockbacks 4 | . . . . . . . . . . . 4 Impact . | . . . . . . . . . . . . Kinetic 4 | . . . . . . . . . . . 4 Secondary . | . . . . . . . . . . . . Self-Inflicted Damage 83 | . . . . . 6 . . . . . 77 Shots 2 | . . . . . . . . . . . 2 Rammed 22 | . 1 . . . 1 . . 2 . . 18 Targets Rammed 29 | . 6 . . . 1 . . 4 . . 18 Kicked 7 | . 5 . . . . . . 2 . . . Crushed . | . . . . . . . . . . . . Highest Temperature 280 | . 93 . . 20 80 28 . 280 . . 13 Average Temperature 29 | . 49 . . 9 24 17 . 32 . . 8 Received Heat Transfer 1176 | . 213 . . 42 144 72 . 324 . . 381 Siege Activations . | . . . . . . . . . . . . Robots Corrupted . | . . . . . . . . . . . . Combat Hostiles . | . . . . . . . . . . . . Parts Fried . | . . . . . . . . . . . . Impact Corruptions . | . . . . . . . . . . . . Robots Melted . | . . . . . . . . . . . . Combat Hostiles . | . . . . . . . . . . . . Parts Melted 4 | . . . . . . . . 4 . . . Heat Transferred 2393 | . 500 . . . . . . 1491 . . 402 Parts Sabotaged . | . . . . . . . . . . . . Parts Stolen . | . . . . . . . . . . . . Parts Stripped . | . . . . . . . . . . . . Power Chain Reactions 1 | . . . . . . . . . . . 1 Alert | -11 -10 -10 -10 -9 -8 -8 -7 -6 -5 -5 -4 ------- Run | Yrd Mat Min Exi Min Mat Gar Fac Fac Fac DSF Fac Peak Influence 724 | . 137 53 . 234 296 205 112 303 138 96 724 Initial 176 | . . 53 . . 91 176 107 54 138 96 42 Average 192 | . 88 53 . 122 234 192 109 169 138 81 307 Maximum Alert Level 3 | . . . . 1 1 1 . 1 . . 3 Low Security (%) 65 | . 100 100 . 80 26 78 100 73 100 100 35 Level 1 25 | . . . . 19 73 21 . 26 . . 36 Level 2 8 | . . . . . . . . . . . 27 Level 3 . | . . . . . . . . . . . . Level 4 . | . . . . . . . . . . . . Level 5 . | . . . . . . . . . . . . High Security . | . . . . . . . . . . . . Max Security . | . . . . . . . . . . . . Squads Dispatched 12 | . . . . . 1 . . 7 . . 4 Investigation 4 | . . . . . 1 . . 2 . . 1 Extermination 1 | . . . . . . . . . . . 1 Reinforcement 2 | . . . . . . . . 1 . . 1 Assault 2 | . . . . . . . . 1 . . 1 Garrison 3 | . . . . . . . . 3 . . . Intercept . | . . . . . . . . . . . . Searches Triggered . | . . . . . . . . . . . . Construction Impeded . | . . . . . . . . . . . . Haulers Reinforced . | . . . . . . . . . . . . Active Scanning Responses . | . . . . . . . . . . . . Cargo Convoy Interrupts . | . . . . . . . . . . . . Stealth | -11 -10 -10 -10 -9 -8 -8 -7 -6 -5 -5 -4 --------- Run | Yrd Mat Min Exi Min Mat Gar Fac Fac Fac DSF Fac Distress Signals 2 | . 1 . . . 1 . . . . . . Communications Jammed 46 | . . . . . . . . . . . 46 Distress Signals 46 | . . . . . . . . . . . 46 Times Spotted 96 | . 11 . 1 15 11 4 . 22 . 1 31 Peak Tracking Total 10 | . 5 . 1 5 7 4 . 5 . 1 10 Tactical Retreats 13 | . 2 . . 4 . . . 2 . . 5 Traps | -11 -10 -10 -10 -9 -8 -8 -7 -6 -5 -5 -4 ------- Run | Yrd Mat Min Exi Min Mat Gar Fac Fac Fac DSF Fac Traps Triggered 4 | . 1 . . . . . . 1 . 1 1 Indirectly . | . . . . . . . . . . . . Trap Hack Attempts . | . . . . . . . . . . . . Triggered . | . . . . . . . . . . . . Disarmed . | . . . . . . . . . . . . Reprogrammed . | . . . . . . . . . . . . Reused . | . . . . . . . . . . . . Traps Extracted . | . . . . . . . . . . . . Installed . | . . . . . . . . . . . . Triggered . | . . . . . . . . . . . . Machines | -11 -10 -10 -10 -9 -8 -8 -7 -6 -5 -5 -4 ---------- Run | Yrd Mat Min Exi Min Mat Gar Fac Fac Fac DSF Fac Machines Disabled 33 | . . . . . . . . 10 . . 23 Max in Single Turn 11 | . . . . . . . . 9 . . 11 Garrison Access 2 | . . . . . . . . 1 . . 1 Machines Repaired . | . . . . . . . . . . . . Machines Dismantled . | . . . . . . . . . . . . Machines Sabotaged . | . . . . . . . . . . . . Overloaded Fab Kills . | . . . . . . . . . . . . Hacking | -11 -10 -10 -10 -9 -8 -8 -7 -6 -5 -5 -4 --------- Run | Yrd Mat Min Exi Min Mat Gar Fac Fac Fac DSF Fac Machines Accessed 12 | . 1 . . . 3 1 1 3 1 . 2 Terminals 8 | . 1 . . . 2 1 1 1 1 . 1 Fabricators 2 | . . . . . . . . 1 . . 1 Repair Stations . | . . . . . . . . . . . . Recycling Units . | . . . . . . . . . . . . Scanalyzers . | . . . . . . . . . . . . Garrison Access 2 | . . . . . 1 . . 1 . . . Total Hacks 34 | . 4 . . . 11 2 2 6 2 . 7 Successful 12 | . 1 . . . 4 1 1 1 1 . 3 Failed 22 | . 3 . . . 7 1 1 5 1 . 4 Catastrophic 4 | . 1 . . . . . . 2 . . 1 Database Lockouts . | . . . . . . . . . . . . Manual 22 | . 4 . . . 7 . 2 3 . . 6 Terminals 22 | . 4 . . . 9 2 2 1 2 . 2 Fabricators 8 | . . . . . . . . 3 . . 5 Repair Stations . | . . . . . . . . . . . . Recycling Units . | . . . . . . . . . . . . Scanalyzers . | . . . . . . . . . . . . Garrison Access 4 | . . . . . 2 . . 2 . . . Terminal Hacks 3 | . . . . . 1 1 . . 1 . . Open DSF 1 | . . . . . . . . . 1 . . Zone Layout 1 | . . . . . 1 . . . . . . Garrison Registry 1 | . . . . . . 1 . . . . . Fabricator Hacks 2 | . . . . . . . . 1 . . 1 Network Status 1 | . . . . . . . . . . . 1 Build 1 | . . . . . . . . 1 . . . Repair Station Hacks . | . . . . . . . . . . . . Recycling Unit Hacks . | . . . . . . . . . . . . Scanalyzer . | . . . . . . . . . . . . Garrison Access Hacks 1 | . . . . . 1 . . . . . . Unlock Access 1 | . . . . . 1 . . . . . . Unauthorized Hacks 6 | . 1 . . . 2 . 1 . . . 2 Terminals 4 | . 1 . . . 2 . 1 . . . . Assimilate 1 | . . . . . 1 . . . . . . Botnet 3 | . 1 . . . 1 . 1 . . . . Fabricators 2 | . . . . . . . . . . . 2 Liberate 1 | . . . . . . . . . . . 1 Fabnet 1 | . . . . . . . . . . . 1 Repair Stations . | . . . . . . . . . . . . Recycling Units . | . . . . . . . . . . . . Scanalyzers . | . . . . . . . . . . . . Garrison Access . | . . . . . . . . . . . . Data Cores Recovered 1 | . . . . . . . . . . . 1 Used . | . . . . . . . . . . . . Hacking Detections 12 | . 1 . . . 3 1 1 3 1 . 2 Full Trace Events 5 | . 1 . . . 1 . . 2 . . 1 Feedback Events . | . . . . . . . . . . . . Feedback Blocked . | . . . . . . . . . . . . Robot Schematics Acquired . | . . . . . . . . . . . . Robots Built 3 | . . . . . . . . 3 . . . Authchips . | . . . . . . . . . . . . Time 67 | . . . . . . . . 67 . . . Total Robot Build Rating 12 | . . . . . . . . 12 . . . Part Schematics Acquired . | . . . . . . . . . . . . Parts Built . | . . . . . . . . . . . . Authchips . | . . . . . . . . . . . . Time . | . . . . . . . . . . . . Total Part Build Rating . | . . . . . . . . . . . . Parts Repaired . | . . . . . . . . . . . . Time . | . . . . . . . . . . . . Parts Recycled . | . . . . . . . . . . . . Recycled Matter . | . . . . . . . . . . . . Retrieved Matter . | . . . . . . . . . . . . Retrieved Components . | . . . . . . . . . . . . Parts Scanalyzed . | . . . . . . . . . . . . Part Schematics Acquired . | . . . . . . . . . . . . Parts Damaged . | . . . . . . . . . . . . Bothacking | -11 -10 -10 -10 -9 -8 -8 -7 -6 -5 -5 -4 ------------ Run | Yrd Mat Min Exi Min Mat Gar Fac Fac Fac DSF Fac Used RIF Installer 1 | . . . . . . 1 . . . . . Robots Hacked 8 | . 1 . . 1 . . . 4 . 1 1 Non-combat . | . . . . . . . . . . . . Combat 8 | . 1 . . 1 . . . 4 . 1 1 Robot Hacks Applied 13 | . 1 . . 1 . . . 8 . 1 2 find_shortcuts 8 | . 1 . . 1 . . . 4 . 1 1 find_garrison 5 | . . . . . . . . 4 . . 1 Relay Couplers Released 3 | . . . . . . . . 1 . . 2 Machine Destruction 3 | . . . . . . . . 1 . . 2 Fabnet Peak Effective % . | . . . . . . . . . . . . Robots Rewired . | . . . . . . . . . . . . Allies Hacked . | . . . . . . . . . . . . Hacks Repelled . | . . . . . . . . . . . . Allies | -11 -10 -10 -10 -9 -8 -8 -7 -6 -5 -5 -4 -------- Run | Yrd Mat Min Exi Min Mat Gar Fac Fac Fac DSF Fac Total Allies 5 | . . . . 2 . . . 3 . . . Largest Group 3 | . . . . 2 . . . 3 . . . Highest-Rated Group 60 | . . . . 41 . . . 60 . . . Highest-Rated Ally 31 | . . . . 31 . . . 20 . . . Total Orders . | . . . . . . . . . . . . Ally Attacks 25 | . . . . 4 . . . 21 . . . Total Damage 405 | . . . . 40 . . . 365 . . . Kills 6 | . . . . 1 . . . 5 . . . Allies Corrupted . | . . . . . . . . . . . . Allies Melted 2 | . . . . . . . . 2 . . . Intel | -11 -10 -10 -10 -9 -8 -8 -7 -6 -5 -5 -4 ------- Run | Yrd Mat Min Exi Min Mat Gar Fac Fac Fac DSF Fac Robot Analysis Total 9 | . 1 . . 1 1 . . 4 . 1 1 Derelict Logs Recovered 1 | . . . . 1 . . . . . . . Drone Launches . | . . . . . . . . . . . . Drone Recoveries . | . . . . . . . . . . . . Exploration | -11 -10 -10 -10 -9 -8 -8 -7 -6 -5 -5 -4 ------------- Run | Yrd Mat Min Exi Min Mat Gar Fac Fac Fac DSF Fac Turns Passed 2546 | . 204 89 120 392 120 105 112 577 3 68 756 Spaces Moved 2173 | 1 143 90 172 481 118 131 140 327 8 60 502 Core 558 | 1 106 90 100 2 20 . . 61 . 1 177 Treads 362 | . . . . . . . . 4 . 33 325 Legs 159 | . 37 . . . . . . 122 . . . Wheels 396 | . . . . . 23 131 140 102 . . . Hover 474 | . . . 72 402 . . . . . . . Flight 224 | . . . . 77 75 . . 38 8 26 . Fastest Speed 32 | 50 50 100 50 37 37 80 80 32 32 32 50 Average Speed 90 | 50 96 100 69 61 47 80 80 107 32 108 127 Slowest Speed 200 | 50 120 100 100 66 80 80 80 200 32 170 170 Overloaded Moves . | . . . . . . . . . . . . Propulsion Burnouts . | . . . . . . . . . . . . Robots Hopped 2 | . . . . . 2 . . . . . . Cave-ins Triggered . | . . . . . . . . . . . . Exploration Rate (%) 34 | 2 35 15 54 89 18 32 6 13 . 88 25 Regions Visited 11 Branch Regions 3 Pre-discovered Areas . | . . . . . . . . . . . . Known Exits Taken 2 | . . . . . 1 . . . 1 . . Unknown Exits Taken 7 | 1 1 1 1 1 . . 1 1 . . . Scrap Searched 3 | . . 1 . 2 . . . . . . . Spaces Dug 2 | . . . . . 1 . . . . . 1 Terrain Destroyed 85 | . . . . . 1 . . 18 . 2 64 Melee . | . . . . . . . . . . . . Projectile 10 | . . . . . 1 . . . . 2 7 AOE 75 | . . . . . . . . 18 . . 57 Terrain Rammed . | . . . . . . . . . . . . Walls Destroyed . | . . . . . . . . . . . . Machines Disabled . | . . . . . . . . . . . . Actions | -11 -10 -10 -10 -9 -8 -8 -7 -6 -5 -5 -4 --------- Run | Yrd Mat Min Exi Min Mat Gar Fac Fac Fac DSF Fac Total 2551 | . 179 89 172 556 160 130 139 473 7 61 585 Wait 193 | . 2 . 1 50 5 . . 96 . . 39 Move 2158 | . 142 89 171 480 113 130 139 326 7 59 502 Hop 2 | . . . . . 2 . . . . . . Pick Up 1 | . . . . . . . . . . . 1 Fast Attach . | . . . . . . . . . . . . Attach . | . . . . . . . . . . . . Detach . | . . . . . . . . . . . . Swap . | . . . . . . . . . . . . Drop . | . . . . . . . . . . . . Fire 148 | . 29 . . 26 21 . . 47 . 2 23 Melee . | . . . . . . . . . . . . Ram 12 | . 1 . . . 1 . . 2 . . 8 Kick 7 | . 5 . . . . . . 2 . . . Crush 10 | . . . . . . . . . . . 10 Escape Stasis . | . . . . . . . . . . . . Rewire . | . . . . . . . . . . . . Trap . | . . . . . . . . . . . . Miscellaneous 20 | . . . . . 18 . . . . . 2 Route ------- -11/Scrapyard -10/Materials -10/Mines -10/Exiles -9/Mines -8/Materials (discovered 2 exits: Fac / Gar) -8/Garrison (discovered 4 exits: *Fac x3 / [Mat]) -7/Factory -6/Factory -5/Factory -5/DSF -4/Factory History --------- Turn | Location | Event 1 | -11/Scrapyard | Discovered new exit (range 0) 1 | -11/Scrapyard | Entered Materials 195 | -10/Materials | Discovered new exit (range 9) 205 | -10/Materials | Entered Mines 288 | -10/Mines | Deemed a non-threat by the Exiles lab entrance 289 | -10/Mines | Discovered new exit (range 5) 294 | -10/Mines | Entered Exiles 320 | -10/Exiles | Met 8R-AWN 337 | -10/Exiles | Met EX-HEX 355 | -10/Exiles | Met EX-BIN 362 | -10/Exiles | Aligned with FarCom system 362 | -10/Exiles | Given EX-Vault access code 367 | -10/Exiles | Took control of EX-BIN (ally) 384 | -10/Exiles | Met EX-DEC 406 | -10/Exiles | Discovered new exit (range 14) 414 | -10/Exiles | Entered Mines 427 | -9/Mines | Core integrity fell below 50% 431 | -9/Mines | Learned 2 Materials zone layouts 725 | -9/Mines | Found a damaged Exp. Sensor Array with a note attached 776 | -9/Mines | Murdered EX-BIN 776 | -9/Mines | Destroyed EX-BIN 803 | -9/Mines | Discovered new exit (range 9) 806 | -9/Mines | Entered Materials 807 | -8/Materials | Identified exit to Factory 907 | -8/Materials | Lost 4 parts (1p2n1w) 924 | -8/Materials | Identified exit to Garrison 926 | -8/Materials | Entered Garrison 931 | -8/Garrison | Discovered exit to Factory (range 60) 931 | -8/Garrison | Discovered exit to Factory (range 31) 931 | -8/Garrison | Discovered exit to Factory (range 73) 931 | -8/Garrison | Discovered new exit (range 42) 964 | -8/Garrison | Triggered checkpoint 974 | -8/Garrison | Triggered checkpoint 1024 | -8/Garrison | Installed Relay Interface Framework 1031 | -8/Garrison | Entered Factory 1132 | -7/Factory | Discovered new exit (range 14) 1143 | -7/Factory | Entered another Factory area 1263 | -6/Factory | Fabricated B-48 Gladiator? 1563 | -6/Factory | Lost 3 parts (1u2w) 1565 | -6/Factory | Core integrity fell below 50% 1613 | -6/Factory | Lost 4 parts (1p2n1u) 1717 | -6/Factory | Discovered new exit (range 6) 1720 | -6/Factory | Entered another Factory area 1723 | -5/Factory | Identified exit to DSF 1723 | -5/Factory | Entered DSF 1746 | -5/DSF | Additional patrols routed to DSF 1762 | -5/DSF | Discovered new exit (range 17) 1789 | -5/DSF | Identified exit to Factory 1791 | -5/DSF | Entered Factory 2264 | -4/Factory | Spotted B-86 Titan 2464 | -4/Factory | Core integrity fell below 50% 2494 | -4/Factory | Lost 12 parts (1p2n6u3w) 2538 | -4/Factory | Core integrity fell below 20% 2547 | -4/Factory | Destroyed by H-71 Marshal with Heavy Mass Driver Last Messages --------------- 02451_ Imp. Remote Datajack destroyed. 02452_ Antigrav System destroyed. 02452_ Mic. Fission Core destroyed. 02452_ Knocked back. 02453_ P-70 Sage resets G-67 Veteran, system corruption cleaned. 02454_ Penetrated by Slug. 02454_ Knocked back. 02454_ Slammed into I-47 Archangel. 02456_ Slammed into P-70 Sage. 02461_ Imp. Heat Sink destroyed. 02470_ Penetrated by Slug. 02470_ K-01 Serf destroyed. 02506_ K-01 Serf cleans the Matter Pump. 02515_ JWE>HS,TTWU&PJLKBYZWOCNZD&A W1AX 02524_ Slammed into S-27 Virus. 02524_ Destabilizing: Core damaged (-11). 02540_ Slammed into G-67 Veteran. 02544_ Destabilizing: System interference. 02544_ Imp. Target Analyzer temporarily disabled. 02545_ Slammed into G-67 Veteran. Map ----- +----------------------------------------------------+ | ?????????# #??????????????????????????? | | ?????????# #??????????????????????????? | | ?????????# #??????????????????????????? | | ?????????# #??????????????????????????? | | ?????????# #??????????????????????????? | | ?????????# #??????????????????????????? | | ?????????# #######???????????????????????? | | ???####### # !#???????????????????????? | | ???# / #???????????????????????? | | ???# #%""" #???????????????????????? | | ???# # """ #???????????????????????? | | ???# # """ #???????????????????????? | | ???# ===# #??????????g????????????? | | ???# =!=# """ #??????????b????????????? | | ???# =!=# """ #???????????????????????? | | ???# # """ #???????????????????????? | | ???# # #???????????????????????? | | ???# !# *#???????????????????????? | | ???# #### #???????????????????????? | | ???# #??#######???????????????????????? | | ???# #????????????????????????????????? | | ???# ###??????????????????????????????? | | ???# # ????????????????####?????????? | | ####+## #" ??????????? ????????? | | # # #" ####### ????????? | | #! # #" [ /g% p ????????? | | # # #T #%##/###+####???????????????? | | # """ # #????# ## "??????????????????????? | | # """ # #????#%## "??????????????????????? | | # """ + #????# ## ""?????????????????????? | | # # #????#g## ??? #??????????????? | | # """ # ######g## =#??????????????? | | # """ + b/ #??????????????? | | # """ #s######### [ #??????????????? | | # # ???????? ! ?? #??????????????? | | #= # ????????#####???????????????????? | | ?###### ???????????????????????????????? | | ??????# s??????????????????????????????? | | ??????# ??????????????????????????????? | | ??????# ??????????????????????????????? | | ??????# #?????????????????????????????? | | ??????? #?????????????????????????????? | | ??????? #?????????????????????????????? | | ???????#####?????????????????????????????? | | ?????????????????????????????????????????? | | ?????????????????????????????????????????? | | ?????????????????????????????????????????? | | ?????????????????????????????????????????? | | ?????????????????????????????????????????? | | ?????????????????????????????????????????? | +----------------------------------------------------+ Best States ------------- Heat Dissipation 74 Energy Generation 34 Energy Capacity 300 Matter Stores 100 Matter Capacity 100 Sight Range 20 Robot Scan Range 20 Terrain Scan Range 16 Terrain Scan Density 10 Jamming Range 14 EM Shielding 3 Armor Coverage 600 Resistance: EX 50 Resistance: EM 90 Resistance: I 50 Resistance: S 50 Resistance: P 50 Weapon Cycling 20 Evasion (%) 63 Targeting Accuracy 6 Target Analysis 6 Recoil Reduction 3 Kinecelleration 30 Offensive Hacking 70 Defensive Hacking 70 Item Schematics ----------------- None Robot Schematics ------------------ None Fabricated ------------ B-48 Gladiator | x3 | -6/Factory | Preloaded Alien Tech Used ----------------- None Achievements -------------- None Challenges ------------ None Polymind | -11 -10 -10 -10 -9 -8 -8 -7 -6 -5 -5 -4 ---------- Run | Yrd Mat Min Exi Min Mat Gar Fac Fac Fac DSF Fac Hosts 10 | . 1 . 1 1 1 . . 4 . 1 1 Combat Hostiles 8 | . 1 . . 1 . . . 4 . 1 1 Allies 1 | . . . 1 . . . . . . . . Unique Host Classes 8 | . 1 . 1 1 1 . . 2 . 1 1 Average Host Suspicion 78 | . 100 34 . 89 59 48 27 84 1 87 89 Unsuspicious Activity 338 | . . . 4 170 92 . . . . 72 . Returns to Shadow 2 | . . . . 1 1 . . . . . . Fuzzy Dispatches . | . . . . . . . . . . . . Protomatter Created 442 | . 36 . 7 5 14 . . 286 . . 94 Used 395 | . 15 . 9 6 5 . . 163 . 144 53 Decayed 80 | . . . . . . . . 35 . . 45 Highest Spend 144 | . 15 . 9 6 5 . . 53 . 144 53 Top 5 Hosts by Kills: Y-54 Guardian (-6/Factory: 6) H-71 Marshal (-5/DSF: 6) G-34 Mercenary (-10/Materials: 4) S-10 Pest (-9/Mines: 3) G-50 Soldier (-6/Factory: 3) Game ------ Seed AssemblyGrapheneProjector Manual? 0 Play Time 00:19:34 Cumulative 692.9 hours Start 2024.03.06 @ 15:00:33 End 2024.03.06 @ 15:15:45 Sessions 1 Manual Loads 0 Difficulty Rogue Special Mode Winter2022/Polymind Game No. 721 Rogue 446 Adventurer 123 Explorer 152 Win Type - Total 26 Types 20/0/4/1/0/0/0/1/0 Lore% 81 Gallery% 91 Achievement% 76 Wizard Run 0 Options --------- Layout 0 ASCII 0 Keyboard 1 Movement Numpad Keybinds 0 Fullscreen 2 Font 18/SmallcapsGlow Map View 76x50 Zoom Use 0% Tactical HUD 1 Map Filters NONE Filters NONE Steam 1 RUN: ad1eab51-5f2f-4231-b69b-6c74f83efb11